[Event "Late-Titled-Tuesday-Blitz-October-03-2023"]
[Site "Chess.com"]
[Date "2023.10.03"]
[Round "4"]
[White "Hrant_ChessMood"]
[Black "Abund"]
[Result "1-0"]
[WhiteElo "2969"]
[BlackElo "2781"]
[TimeControl "180+1"]
[EndTime "14:39:41 PDT"]
[Termination "Hrant_ChessMood won by resignation"]

1. d4 {[%clk 0:03:00.9]} 1... Nf6 {[%clk 0:02:59.4]} 2. c4 {[%clk 0:03:01.4]}
2... e6 {[%clk 0:02:59.8]} 3. Bf4 {[%clk 0:03:01.9]} 3... d5 {[%clk 0:02:59.2]}
4. e3 {[%clk 0:03:02.5]} 4... Bd6 {[%clk 0:02:36.5]} 5. Nc3 {[%clk 0:03:01.9]}
5... Bxf4 {[%clk 0:02:34.9]} 6. exf4 {[%clk 0:03:02.8]} 6... O-O {[%clk
0:02:34.8]} 7. Nf3 {[%clk 0:03:03]} 7... b6 {[%clk 0:02:34.5]} 8. Bd3 {[%clk
0:03:02.7]} 8... dxc4 {[%clk 0:02:34.7]} 9. Bxc4 {[%clk 0:03:02.9]} 9... Bb7
{[%clk 0:02:33.8]} 10. O-O {[%clk 0:03:02.3]} 10... Nc6 {[%clk 0:02:33.5]} 11.
Rc1 {[%clk 0:02:52.2]} 11... Ne7 {[%clk 0:02:31]} 12. Ne5 {[%clk 0:02:43.6]}
12... Rc8 {[%clk 0:02:22.4]} 13. Re1 {[%clk 0:02:33.3]} 13... Ned5 {[%clk
0:02:10.6]} 14. Qd2 {[%clk 0:02:21.4]} 14... c5 {[%clk 0:02:05.9]} 15. Rcd1
{[%clk 0:02:12.2]} 15... a6 {[%clk 0:01:50]} 16. Bb3 {[%clk 0:01:53.5]} 16... b5
{[%clk 0:01:46.4]} 17. dxc5 {[%clk 0:01:50.6]} 17... Rxc5 {[%clk 0:01:47.3]} 18.
Ne2 {[%clk 0:01:39.2]} 18... Qc7 {[%clk 0:01:27.3]} 19. Rc1 {[%clk 0:01:34.8]}
19... Rc8 {[%clk 0:01:21.4]} 20. Rxc5 {[%clk 0:01:33.8]} 20... Qxc5 {[%clk
0:01:22.3]} 21. Rc1 {[%clk 0:01:33.8]} 21... Qf8 {[%clk 0:01:22.2]} 22. f3
{[%clk 0:01:26.9]} 22... g6 {[%clk 0:01:15.6]} 23. Kf2 {[%clk 0:01:13]} 23...
Qd8 {[%clk 0:01:12.8]} 24. Rxc8 {[%clk 0:01:09.9]} 24... Qxc8 {[%clk 0:01:13.1]}
25. Qd4 {[%clk 0:01:09.3]} 25... Qc7 {[%clk 0:01:04.3]} 26. Nd3 {[%clk
0:01:09.4]} 26... Nd7 {[%clk 0:01:02.7]} 27. a3 {[%clk 0:01:00]} 27... h5 {[%clk
0:00:54.9]} 28. Ng3 {[%clk 0:00:58.8]} 28... Qb6 {[%clk 0:00:49.6]} 29. Qxb6
{[%clk 0:00:58]} 29... N5xb6 {[%clk 0:00:50.4]} 30. Ne4 {[%clk 0:00:56.6]} 30...
Bd5 {[%clk 0:00:39.8]} 31. Bxd5 {[%clk 0:00:40.1]} 31... Nxd5 {[%clk 0:00:39.9]}
32. g3 {[%clk 0:00:40.6]} 32... Kf8 {[%clk 0:00:37.8]} 33. Nec5 {[%clk
0:00:35.9]} 33... Nxc5 {[%clk 0:00:35.7]} 34. Nxc5 {[%clk 0:00:36.8]} 34... a5
{[%clk 0:00:32.9]} 35. Nb7 {[%clk 0:00:37]} 35... a4 {[%clk 0:00:32.1]} 36. Nd6
{[%clk 0:00:37.2]} 36... Nc7 {[%clk 0:00:23.3]} 37. Ke3 {[%clk 0:00:36.7]} 37...
Ke7 {[%clk 0:00:23.7]} 38. Ne4 {[%clk 0:00:34.2]} 38... Kd7 {[%clk 0:00:18.1]}
39. Kd4 {[%clk 0:00:33]} 39... Kc6 {[%clk 0:00:18.2]} 40. Ng5 {[%clk 0:00:17.6]}
40... f6 {[%clk 0:00:14.5]} 41. Nh7 {[%clk 0:00:17.7]} 41... Nd5 {[%clk
0:00:05.9]} 42. Nf8 {[%clk 0:00:17.6]} 42... g5 {[%clk 0:00:05.3]} 43. fxg5
{[%clk 0:00:17.2]} 43... fxg5 {[%clk 0:00:03.3]} 44. Nxe6 {[%clk 0:00:17.9]}
44... g4 {[%clk 0:00:03.5]} 45. fxg4 {[%clk 0:00:17.6]} 45... hxg4 {[%clk
0:00:04.4]} 46. Nd8+ {[%clk 0:00:18.2]} 46... Kd6 {[%clk 0:00:04.8]} 47. Nf7+
{[%clk 0:00:18.5]} 47... Ke6 {[%clk 0:00:04.7]} 48. Ne5 {[%clk 0:00:17.7]} 48...
Nf6 {[%clk 0:00:04.6]} 49. Nd3 {[%clk 0:00:17.4]} 49... Kd6 {[%clk 0:00:04.3]}
50. Ne5 {[%clk 0:00:16.4]} 50... Ke6 {[%clk 0:00:04.1]} 51. Nd3 {[%clk
0:00:16.7]} 51... Kd6 {[%clk 0:00:04.6]} 52. Nf2 {[%clk 0:00:17.1]} 52... Ke6
{[%clk 0:00:02]} 53. Kc5 {[%clk 0:00:17.1]} 53... Ke5 {[%clk 0:00:02.3]} 54.
Kxb5 {[%clk 0:00:17.6]} 54... Kd4 {[%clk 0:00:02.9]} 55. Kxa4 {[%clk 0:00:18.1]}
55... Ke3 {[%clk 0:00:03.4]} 56. Nxg4+ {[%clk 0:00:15.7]} 56... Nxg4 {[%clk
0:00:03.5]} 57. Kb5 {[%clk 0:00:16.6]} 57... Nxh2 {[%clk 0:00:01.9]} 58. a4
{[%clk 0:00:17.5]} 58... Nf3 {[%clk 0:00:02.6]} 59. a5 {[%clk 0:00:18]} 59...
Ne5 {[%clk 0:00:03.3]} 60. a6 {[%clk 0:00:18.1]} 60... Nf7 {[%clk 0:00:01.9]}
61. a7 {[%clk 0:00:18.6]} 61... Nd6+ {[%clk 0:00:02.5]} 62. Ka6 {[%clk
0:00:18.8]} 62... Nc4 {[%clk 0:00:02]} 63. a8=Q {[%clk 0:00:18.8]} 63... Nxb2
{[%clk 0:00:02.8]} 64. Qg2 {[%clk 0:00:17.8]} 64... Nd3 {[%clk 0:00:03.4]} 65.
g4 {[%clk 0:00:17.5]} 65... Nf4 {[%clk 0:00:03.7]} 66. Qg3+ {[%clk 0:00:17.5]}
66... Ke4 {[%clk 0:00:04.5]} 67. g5 {[%clk 0:00:18.1]} 67... Ng6 {[%clk
0:00:05.2]} 68. Qf2 {[%clk 0:00:17.4]} 68... Nf4 {[%clk 0:00:03.7]} 69. Qxf4+
{[%clk 0:00:17.1]} 69... Kxf4 {[%clk 0:00:03.4]} 70. g6 {[%clk 0:00:17.7]} 1-0

[Event "Late-Titled-Tuesday-Blitz-October-03-2023"]
[Site "Chess.com"]
[Date "2023.10.03"]
[Round "4"]
[White "Mikhal867"]
[Black "luizzy"]
[Result "1/2-1/2"]
[WhiteElo "2479"]
[BlackElo "2611"]
[TimeControl "180+1"]
[EndTime "14:39:47 PDT"]
[Termination "Game drawn - insufficient material"]

1. d4 {[%clk 0:03:00.9]} 1... d6 {[%clk 0:02:54.1]} 2. e4 {[%clk 0:03:00.5]}
2... Nf6 {[%clk 0:02:52.8]} 3. Nc3 {[%clk 0:02:59.9]} 3... Nbd7 {[%clk
0:02:47.3]} 4. g3 {[%clk 0:02:54.7]} 4... e5 {[%clk 0:02:46.6]} 5. Nge2 {[%clk
0:02:54.2]} 5... g6 {[%clk 0:02:41.8]} 6. Bg2 {[%clk 0:02:53.7]} 6... Bg7 {[%clk
0:02:42]} 7. h3 {[%clk 0:02:53.1]} 7... O-O {[%clk 0:02:41.9]} 8. O-O {[%clk
0:02:52.6]} 8... c6 {[%clk 0:02:42.4]} 9. a4 {[%clk 0:02:50.3]} 9... a5 {[%clk
0:02:36.8]} 10. Be3 {[%clk 0:02:49.4]} 10... Re8 {[%clk 0:02:31.9]} 11. Qd2
{[%clk 0:02:33.8]} 11... exd4 {[%clk 0:02:29.4]} 12. Bxd4 {[%clk 0:02:31.7]}
12... Nc5 {[%clk 0:02:15.6]} 13. Bxc5 {[%clk 0:02:10]} 13... dxc5 {[%clk
0:02:16.5]} 14. Qxd8 {[%clk 0:02:09.7]} 14... Rxd8 {[%clk 0:02:17.4]} 15. Rad1
{[%clk 0:02:04.7]} 15... Be6 {[%clk 0:02:16.5]} 16. Nf4 {[%clk 0:01:52.5]} 16...
Bc4 {[%clk 0:02:14.8]} 17. Rfe1 {[%clk 0:01:52.1]} 17... g5 {[%clk 0:01:43.4]}
18. Nd3 {[%clk 0:01:49.1]} 18... b6 {[%clk 0:01:36.3]} 19. Ne5 {[%clk
0:01:46.7]} 19... Rd4 {[%clk 0:00:24.6]} 20. Nxc6 {[%clk 0:01:45.5]} 20... Rxd1
{[%clk 0:00:23.9]} 21. Rxd1 {[%clk 0:01:44.1]} 21... Re8 {[%clk 0:00:20.5]} 22.
f4 {[%clk 0:01:16]} 22... Nh5 {[%clk 0:00:17.5]} 23. fxg5 {[%clk 0:00:52.9]}
23... Nxg3 {[%clk 0:00:17.8]} 24. Kh2 {[%clk 0:00:46.7]} 24... Bxc3 {[%clk
0:00:17.2]} 25. Kxg3 {[%clk 0:00:37.6]} 25... Bxb2 {[%clk 0:00:17.5]} 26. Rb1
{[%clk 0:00:37.7]} 26... Be5+ {[%clk 0:00:11.4]} 27. Nxe5 {[%clk 0:00:37]} 27...
Rxe5 {[%clk 0:00:12.3]} 28. Kf4 {[%clk 0:00:31.5]} 28... Re6 {[%clk 0:00:12.4]}
29. e5 {[%clk 0:00:29.6]} 29... Kg7 {[%clk 0:00:09.1]} 30. h4 {[%clk 0:00:29.3]}
30... h6 {[%clk 0:00:09.1]} 31. Bh3 {[%clk 0:00:26.8]} 31... Rc6 {[%clk
0:00:09.7]} 32. Bd7 {[%clk 0:00:26.5]} 32... Rc7 {[%clk 0:00:09.7]} 33. Bf5
{[%clk 0:00:25.8]} 33... hxg5+ {[%clk 0:00:08]} 34. hxg5 {[%clk 0:00:25.7]}
34... Rb7 {[%clk 0:00:07.6]} 35. Be4 {[%clk 0:00:24.8]} 35... Rb8 {[%clk
0:00:07.7]} 36. Rh1 {[%clk 0:00:23.7]} 36... Rg8 {[%clk 0:00:06.5]} 37. Rh6
{[%clk 0:00:17.3]} 37... b5 {[%clk 0:00:05.3]} 38. axb5 {[%clk 0:00:15.4]} 38...
Bxb5 {[%clk 0:00:06.2]} 39. Rh7+ {[%clk 0:00:12.9]} 39... Kf8 {[%clk 0:00:06.2]}
40. Kf5 {[%clk 0:00:12.5]} 40... Rg6 {[%clk 0:00:02.7]} 41. Kf4 {[%clk
0:00:09.9]} 41... Rb6 {[%clk 0:00:02.2]} 42. Bd5 {[%clk 0:00:10]} 42... Be8
{[%clk 0:00:02.3]} 43. Rh8+ {[%clk 0:00:06.7]} 43... Ke7 {[%clk 0:00:02.5]} 44.
Rh6 {[%clk 0:00:05.5]} 44... Rb4+ {[%clk 0:00:02.9]} 45. Ke3 {[%clk 0:00:04.3]}
45... Rd4 {[%clk 0:00:02.3]} 46. c4 {[%clk 0:00:03.9]} 46... a4 {[%clk
0:00:02.6]} 47. Ra6 {[%clk 0:00:03.8]} 47... Rg4 {[%clk 0:00:03.3]} 48. Ra7+
{[%clk 0:00:03.4]} 48... Kf8 {[%clk 0:00:03.9]} 49. Ra8 {[%clk 0:00:02.8]} 49...
Ke7 {[%clk 0:00:03.2]} 50. Ra7+ {[%clk 0:00:02.5]} 50... Kf8 {[%clk 0:00:03.8]}
51. Ra8 {[%clk 0:00:02.9]} 51... Rxg5 {[%clk 0:00:04.4]} 52. Bc6 {[%clk
0:00:02.3]} 52... Rxe5+ {[%clk 0:00:05]} 53. Kf4 {[%clk 0:00:02.7]} 53... Re6
{[%clk 0:00:05.5]} 54. Bxe8 {[%clk 0:00:02.7]} 54... Rxe8 {[%clk 0:00:06.4]} 55.
Rxa4 {[%clk 0:00:03]} 55... Ke7 {[%clk 0:00:06.6]} 56. Ke5 {[%clk 0:00:03.1]}
56... Rd8 {[%clk 0:00:05.5]} 57. Ra7+ {[%clk 0:00:02.5]} 57... Ke8 {[%clk
0:00:05.4]} 58. Rc7 {[%clk 0:00:02.6]} 58... Rd7 {[%clk 0:00:02.1]} 59. Rxc5
{[%clk 0:00:02.7]} 59... Ke7 {[%clk 0:00:02.8]} 60. Kf5 {[%clk 0:00:03]} 60...
f6 {[%clk 0:00:01.3]} 61. Ra5 {[%clk 0:00:03]} 61... Rd4 {[%clk 0:00:01.7]} 62.
Rc5 {[%clk 0:00:02.5]} 62... Kd6 {[%clk 0:00:02.1]} 63. Rd5+ {[%clk 0:00:02.6]}
63... Rxd5+ {[%clk 0:00:02.3]} 64. cxd5 {[%clk 0:00:02.9]} 64... Kxd5 {[%clk
0:00:03.2]} 65. Kxf6 {[%clk 0:00:03]} 1/2-1/2

[Event "Late-Titled-Tuesday-Blitz-October-03-2023"]
[Site "Chess.com"]
[Date "2023.10.03"]
[Round "4"]
[White "RamyresCoelho"]
[Black "dennisodessa"]
[Result "1/2-1/2"]
[WhiteElo "2286"]
[BlackElo "2465"]
[TimeControl "180+1"]
[EndTime "14:39:47 PDT"]
[Termination "Game drawn by repetition"]

1. e4 {[%clk 0:03:00.8]} 1... e6 {[%clk 0:03:00.9]} 2. d4 {[%clk 0:02:59.6]}
2... d5 {[%clk 0:03:01.5]} 3. Nc3 {[%clk 0:02:58.2]} 3... Bb4 {[%clk 0:03:02]}
4. e5 {[%clk 0:02:56.9]} 4... c5 {[%clk 0:03:02]} 5. a3 {[%clk 0:02:55.9]} 5...
Ba5 {[%clk 0:03:02.6]} 6. b4 {[%clk 0:02:49.1]} 6... cxd4 {[%clk 0:03:02.2]} 7.
bxa5 {[%clk 0:02:46.8]} 7... dxc3 {[%clk 0:03:01.6]} 8. Qg4 {[%clk 0:02:46.7]}
8... Kf8 {[%clk 0:02:47]} 9. Nf3 {[%clk 0:02:43.5]} 9... Ne7 {[%clk 0:02:43.9]}
10. Bd3 {[%clk 0:02:39.1]} 10... Nbc6 {[%clk 0:02:40.8]} 11. Qf4 {[%clk
0:02:33.4]} 11... h6 {[%clk 0:02:40.1]} 12. a4 {[%clk 0:02:28.4]} 12... Qxa5
{[%clk 0:02:31.7]} 13. O-O {[%clk 0:02:27]} 13... b6 {[%clk 0:02:25.1]} 14. Ba3
{[%clk 0:02:25.1]} 14... Ba6 {[%clk 0:02:24.4]} 15. Bg6 {[%clk 0:02:10.7]} 15...
Nd8 {[%clk 0:02:11.9]} 16. Bb4 {[%clk 0:02:09.3]} 16... Bxf1 {[%clk 0:02:03.6]}
17. Bxa5 {[%clk 0:02:00.9]} 17... Nxg6 {[%clk 0:01:45.8]} 18. Bb4+ {[%clk
0:01:52.9]} 18... Kg8 {[%clk 0:01:44.7]} 19. Qd4 {[%clk 0:01:48.8]} 19... Bc4
{[%clk 0:01:34.2]} 20. Bxc3 {[%clk 0:01:40.5]} 20... Nc6 {[%clk 0:01:32.3]} 21.
Qe3 {[%clk 0:01:38.5]} 21... Kh7 {[%clk 0:01:25.8]} 22. h4 {[%clk 0:01:38]}
22... Rhf8 {[%clk 0:01:05.9]} 23. h5 {[%clk 0:01:37.7]} 23... Nge7 {[%clk
0:01:06.1]} 24. g4 {[%clk 0:01:36.9]} 24... Rad8 {[%clk 0:01:03.2]} 25. Nd4
{[%clk 0:01:35.4]} 25... Nxd4 {[%clk 0:01:01.3]} 26. Bxd4 {[%clk 0:01:36.3]}
26... Nc6 {[%clk 0:00:58.9]} 27. c3 {[%clk 0:01:34.1]} 27... Nxd4 {[%clk
0:00:44]} 28. cxd4 {[%clk 0:01:35]} 28... f5 {[%clk 0:00:30.2]} 29. exf6 {[%clk
0:01:31]} 29... Rxf6 {[%clk 0:00:29.5]} 30. a5 {[%clk 0:01:11.4]} 30... b5
{[%clk 0:00:28.1]} 31. Rb1 {[%clk 0:01:03.3]} 31... Rdf8 {[%clk 0:00:26.7]} 32.
Rb2 {[%clk 0:01:03.3]} 32... a6 {[%clk 0:00:17.3]} 33. Qe5 {[%clk 0:01:02.5]}
33... R8f7 {[%clk 0:00:16.8]} 34. g5 {[%clk 0:00:59.3]} 34... hxg5 {[%clk
0:00:16.3]} 35. Qxg5 {[%clk 0:01:00.2]} 35... Kh8 {[%clk 0:00:15]} 36. Qe5
{[%clk 0:00:57.3]} 36... Rh6 {[%clk 0:00:10.5]} 37. Kg2 {[%clk 0:00:49.6]} 37...
Rf5 {[%clk 0:00:08.9]} 38. Qb8+ {[%clk 0:00:49.1]} 38... Kh7 {[%clk 0:00:09.8]}
39. f4 {[%clk 0:00:42.6]} 39... Rfxh5 {[%clk 0:00:09.3]} 40. f5 {[%clk
0:00:37.3]} 40... exf5 {[%clk 0:00:05.9]} 41. Kf3 {[%clk 0:00:31.5]} 41... Rh3+
{[%clk 0:00:05.1]} 42. Kf4 {[%clk 0:00:31.4]} 42... R6h4+ {[%clk 0:00:02.7]} 43.
Ke5 {[%clk 0:00:31.3]} 43... Re4+ {[%clk 0:00:03]} 44. Kd6 {[%clk 0:00:31.3]}
44... Rxd4 {[%clk 0:00:03.3]} 45. Rg2 {[%clk 0:00:30.4]} 45... Rh6+ {[%clk
0:00:02.5]} 46. Kc5 {[%clk 0:00:29.6]} 46... Rg4 {[%clk 0:00:02.6]} 47. Rf2
{[%clk 0:00:27.9]} 47... f4 {[%clk 0:00:01.6]} 48. Rxf4 {[%clk 0:00:27.4]} 48...
Rxf4 {[%clk 0:00:02.5]} 49. Qxf4 {[%clk 0:00:28.3]} 49... Rf6 {[%clk 0:00:02.6]}
50. Qh4+ {[%clk 0:00:27.7]} 50... Kg8 {[%clk 0:00:03.5]} 51. Qh5 {[%clk
0:00:26.8]} 51... Kf8 {[%clk 0:00:03.6]} 52. Qe5 {[%clk 0:00:26.1]} 52... Kf7
{[%clk 0:00:04.5]} 53. Qc7+ {[%clk 0:00:26]} 53... Kg8 {[%clk 0:00:05.1]} 54.
Qd8+ {[%clk 0:00:25.9]} 54... Kh7 {[%clk 0:00:06]} 55. Qe8 {[%clk 0:00:25.7]}
55... Kh6 {[%clk 0:00:05.7]} 56. Qe3+ {[%clk 0:00:25.2]} 56... Kg6 {[%clk
0:00:06.6]} 57. Qe8+ {[%clk 0:00:25.2]} 57... Kh6 {[%clk 0:00:05.7]} 58. Qe3+
{[%clk 0:00:26.1]} 58... Kg6 {[%clk 0:00:05.2]} 59. Qe8+ {[%clk 0:00:27]} 59...
Kf5 {[%clk 0:00:04.2]} 60. Qe3 {[%clk 0:00:27.9]} 60... Re6 {[%clk 0:00:02.1]}
61. Qf3+ {[%clk 0:00:26.2]} 61... Kg6 {[%clk 0:00:02.5]} 62. Qg3+ {[%clk
0:00:26.5]} 62... Kf6 {[%clk 0:00:03.4]} 63. Qf3+ {[%clk 0:00:27.4]} 63... Ke7
{[%clk 0:00:03.6]} 64. Qg3 {[%clk 0:00:28.3]} 64... Kf7 {[%clk 0:00:02.1]} 65.
Qc7+ {[%clk 0:00:28.3]} 65... Re7 {[%clk 0:00:02.4]} 66. Qf4+ {[%clk 0:00:28.8]}
66... Kg8 {[%clk 0:00:02.3]} 67. Qb8+ {[%clk 0:00:28.8]} 67... Kf7 {[%clk
0:00:02.7]} 68. Qf4+ {[%clk 0:00:28.8]} 68... Kg8 {[%clk 0:00:03.4]} 69. Qb8+
{[%clk 0:00:28.9]} 69... Kf7 {[%clk 0:00:04]} 70. Qf4+ {[%clk 0:00:28.8]}
1/2-1/2

[Event "Late-Titled-Tuesday-Blitz-October-03-2023"]
[Site "Chess.com"]
[Date "2023.10.03"]
[Round "4"]
[White "MathiasCasalaspro"]
[Black "ChadBiryani"]
[Result "0-1"]
[WhiteElo "2327"]
[BlackElo "2504"]
[TimeControl "180+1"]
[EndTime "14:39:48 PDT"]
[Termination "ChadBiryani won by checkmate"]

1. d4 {[%clk 0:03:00.9]} 1... f5 {[%clk 0:02:57]} 2. Bg5 {[%clk 0:02:57]} 2...
h6 {[%clk 0:02:55.6]} 3. Bh4 {[%clk 0:02:55.2]} 3... g5 {[%clk 0:02:55.4]} 4.
Bg3 {[%clk 0:02:52.4]} 4... Nf6 {[%clk 0:02:54.7]} 5. e3 {[%clk 0:02:50.7]} 5...
Bg7 {[%clk 0:02:54]} 6. c4 {[%clk 0:02:50.6]} 6... d6 {[%clk 0:02:53.6]} 7. Nc3
{[%clk 0:02:50.8]} 7... O-O {[%clk 0:02:52.4]} 8. h4 {[%clk 0:02:46.8]} 8... g4
{[%clk 0:02:48.5]} 9. h5 {[%clk 0:02:45.5]} 9... Qe8 {[%clk 0:02:40.2]} 10. Nd5
{[%clk 0:02:36.7]} 10... Na6 {[%clk 0:02:34]} 11. Nxf6+ {[%clk 0:02:35.1]} 11...
Bxf6 {[%clk 0:02:31.4]} 12. Ne2 {[%clk 0:02:35.3]} 12... e5 {[%clk 0:02:12.2]}
13. d5 {[%clk 0:02:14.6]} 13... Nc5 {[%clk 0:02:08.4]} 14. Nc3 {[%clk
0:02:13.7]} 14... a5 {[%clk 0:02:04.2]} 15. Be2 {[%clk 0:01:56.4]} 15... Bg5
{[%clk 0:01:57.9]} 16. Qc2 {[%clk 0:01:52.9]} 16... f4 {[%clk 0:01:37.1]} 17.
Bh4 {[%clk 0:01:51.6]} 17... Qxh5 {[%clk 0:01:36.7]} 18. Bxg5 {[%clk 0:01:34.1]}
18... Qxg5 {[%clk 0:01:35]} 19. exf4 {[%clk 0:01:24.1]} 19... exf4 {[%clk
0:01:31.2]} 20. f3 {[%clk 0:00:56.8]} 20... Bf5 {[%clk 0:01:21.5]} 21. Qd2
{[%clk 0:00:56.8]} 21... g3 {[%clk 0:00:57]} 22. O-O-O {[%clk 0:00:38.5]} 22...
Rfe8 {[%clk 0:00:48.8]} 23. Rde1 {[%clk 0:00:33.1]} 23... Re3 {[%clk 0:00:45.6]}
24. Nd1 {[%clk 0:00:13.8]} 24... Nd3+ {[%clk 0:00:24.2]} 25. Bxd3 {[%clk
0:00:12.7]} 25... Rxd3 {[%clk 0:00:25.1]} 26. Qe2 {[%clk 0:00:10]} 26... a4
{[%clk 0:00:22.5]} 27. Qe7 {[%clk 0:00:07.7]} 27... a3 {[%clk 0:00:17.6]} 28.
Qxg5+ {[%clk 0:00:06.6]} 28... hxg5 {[%clk 0:00:17.7]} 29. b3 {[%clk 0:00:07.2]}
29... Kf7 {[%clk 0:00:16.1]} 30. Re2 {[%clk 0:00:04.2]} 30... c6 {[%clk
0:00:12.6]} 31. Rhe1 {[%clk 0:00:03.3]} 31... cxd5 {[%clk 0:00:11]} 32. Re7+
{[%clk 0:00:04]} 32... Kf6 {[%clk 0:00:11.3]} 33. c5 {[%clk 0:00:04.5]} 33...
dxc5 {[%clk 0:00:11]} 34. Rxb7 {[%clk 0:00:04.2]} 34... c4 {[%clk 0:00:07.7]}
35. Rb6+ {[%clk 0:00:04.5]} 35... Kg7 {[%clk 0:00:06.7]} 36. Rb7+ {[%clk
0:00:04.7]} 36... Kg6 {[%clk 0:00:06.7]} 37. Rb6+ {[%clk 0:00:04.8]} 37... Kf7
{[%clk 0:00:07.4]} 38. Rb7+ {[%clk 0:00:05.2]} 38... Kf8 {[%clk 0:00:07.7]} 39.
bxc4 {[%clk 0:00:04.3]} 39... Rc8 {[%clk 0:00:07.3]} 40. Rb4 {[%clk 0:00:03]}
40... Rxc4+ {[%clk 0:00:07.5]} 41. Rxc4 {[%clk 0:00:03.3]} 41... dxc4 {[%clk
0:00:08.4]} 42. Re5 {[%clk 0:00:03.5]} 42... Bg6 {[%clk 0:00:07.7]} 43. Rxg5
{[%clk 0:00:03.8]} 43... Kf7 {[%clk 0:00:08.2]} 44. Rc5 {[%clk 0:00:03.8]} 44...
Rd4 {[%clk 0:00:08.5]} 45. Rc7+ {[%clk 0:00:04]} 45... Kf6 {[%clk 0:00:08.3]}
46. Rc6+ {[%clk 0:00:04.6]} 46... Kg5 {[%clk 0:00:09]} 47. Rc5+ {[%clk
0:00:04.8]} 47... Kh6 {[%clk 0:00:09.8]} 48. Ra5 {[%clk 0:00:05]} 48... Rd3
{[%clk 0:00:07.7]} 49. Rc5 {[%clk 0:00:04.8]} 49... Rd4 {[%clk 0:00:07.8]} 50.
Ra5 {[%clk 0:00:05]} 50... Rd3 {[%clk 0:00:07.6]} 51. Rc5 {[%clk 0:00:05.3]}
51... Bf7 {[%clk 0:00:08.2]} 52. Rc7 {[%clk 0:00:05]} 52... Kg6 {[%clk
0:00:08.3]} 53. Rc6+ {[%clk 0:00:05.5]} 53... Kg7 {[%clk 0:00:08.5]} 54. Rc7
{[%clk 0:00:06]} 54... Kf6 {[%clk 0:00:08.6]} 55. Rc6+ {[%clk 0:00:06.3]} 55...
Ke5 {[%clk 0:00:09.2]} 56. Rc7 {[%clk 0:00:06.1]} 56... Be6 {[%clk 0:00:09.4]}
57. Ra7 {[%clk 0:00:06.1]} 57... Bd5 {[%clk 0:00:09.3]} 58. Re7+ {[%clk
0:00:05.4]} 58... Kd4 {[%clk 0:00:09.9]} 59. Rf7 {[%clk 0:00:05.8]} 59... Ke5
{[%clk 0:00:09.4]} 60. Re7+ {[%clk 0:00:06]} 60... Kd4 {[%clk 0:00:09.8]} 61.
Re8 {[%clk 0:00:06.2]} 61... c3 {[%clk 0:00:09.1]} 62. Rf8 {[%clk 0:00:05.4]}
62... Ke5 {[%clk 0:00:08.7]} 63. Re8+ {[%clk 0:00:05.8]} 63... Be6 {[%clk
0:00:09.4]} 64. Ra8 {[%clk 0:00:05.3]} 64... Rd2 {[%clk 0:00:09.6]} 65. Rxa3
{[%clk 0:00:04.1]} 65... Rxg2 {[%clk 0:00:09.9]} 66. Rxc3 {[%clk 0:00:02.7]}
66... Rxa2 {[%clk 0:00:09.5]} 67. Rc5+ {[%clk 0:00:03]} 67... Kf6 {[%clk
0:00:09.7]} 68. Rb5 {[%clk 0:00:02.2]} 68... g2 {[%clk 0:00:09.8]} 69. Rb8
{[%clk 0:00:02]} 69... g1=Q {[%clk 0:00:09.8]} 70. Rf8+ {[%clk 0:00:02.5]} 70...
Bf7 {[%clk 0:00:10.1]} 71. Rd8 {[%clk 0:00:01.9]} 71... Qc5+ {[%clk 0:00:10.5]}
72. Kb1 {[%clk 0:00:01.8]} 72... Qc2# {[%clk 0:00:11]} 0-1